[Event "Hungarian Youth-ch U14 2022"]
[Site "Eger"]
[Date "2022.07.31"]
[Round "9.8"]
[White "Szarvas, Nora Orsolya"]
[Black "Karacsonyi, Luca"]
[Result "1/2-1/2"]
[ECO "C50"]
[WhiteElo "1692"]
[BlackElo "1789"]
[Annotator "NA RC"]
[PlyCount "32"]
[EventDate "2022.07.21"]
[EventType "tourn"]
[EventCountry "HUN"]
[SourceTitle "playchess.com"]
[Source "ChessBase"]
[SourceQuality "1"]
[TimeControl "40/5400+30:1800+30"]

1. e4 {[%emt 0:00:32]} e5 {[%emt 0:00:33]} 2. Nf3 {[%emt 0:00:03]} Nc6 {[%emt 0:00:04]} 3. Nc3 {[%emt 0:00:05]} Bc5 {[%emt 0:00:06]} 4. Bc4 {[%emt 0:00:06]} Nf6 {[%emt 0:00:05]} 5. d3 {[%emt 0:00:07]} O-O {[%emt 0:00:04]} 6. O-O {[%emt 0:00:06]} d6 {[%emt 0:00:05]} 7. h3 {[%emt 0:00:06]} a6 {[%emt 0:00:05]} 8. a3 {[%emt 0:00:06]} Bd7 {[%emt 0:00:08]} 9. Re1 {[%emt 0:00:07]} h6 {[%emt 0:00:06]} 10. Bd2 {[%emt 0:00:11]} Re8 {[%emt 0:00:06]} 11. Qe2 {[%emt 0:00:06]} Qe7 {[%emt 0:00:05]} 12. Rad1 {[%emt 0:00:12]} Rad8 {[%emt 0:00:06]} 13. Rc1 {[%emt 0:00:09]} Na5 {[%emt 0:00:08]} 14. Ba2 {[%emt 0:00:04]} Nc6 {[%emt 0:00:04]} 15. Bc4 {[%emt 0:00:03]} Na5 {[%emt 0:00:04]} 16. Ba2 {[%emt 0:00:05]} Nc6 {[%emt 0:00:05]} 1/2-1/2

[Event "Hungarian Youth-ch U14 2022"]
[Site "Eger"]
[Date "2022.07.31"]
[Round "9.9"]
[White "Balazs, Sztella Anna"]
[Black "Nandin-Erdene, Davaademberel"]
[Result "1-0"]
[ECO "B15"]
[WhiteElo "1663"]
[BlackElo "1789"]
[Annotator "NA RC"]
[PlyCount "113"]
[EventDate "2022.07.21"]
[EventType "tourn"]
[EventCountry "HUN"]
[SourceTitle "playchess.com"]
[Source "ChessBase"]
[SourceQuality "1"]
[TimeControl "40/5400+30:1800+30"]

1. e4 {[%emt 0:00:31]} c6 {[%emt 0:00:35]} 2. d4 {[%emt 0:00:04]} d5 {[%emt 0:00:05]} 3. Nc3 {[%emt 0:00:03]} dxe4 {[%emt 0:00:09]} 4. Nxe4 {[%emt 0:00:05]} Nf6 {[%emt 0:00:11]} 5. Nxf6+ {[%emt 0:00:06]} exf6 {[%emt 0:00:04]} 6. c3 {[%emt 0:00:11]} Bd6 {[%emt 0:00:06]} 7. Bd3 {[%emt 0:00:06]} O-O {[%emt 0:00:08]} 8. Qc2 {[%emt 0:00:05]} Re8+ {[%emt 0:00:06]} 9. Ne2 {[%emt 0:00:04]} h5 {[%emt 0:00:12]} 10. O-O {[%emt 0:00:08]} h4 {[%emt 0:00:19]} 11. Bf4 {[%emt 0:00:26]} Be6 {[%emt 0:03:27]} 12. Bxd6 {[%emt 0:04:39]} Qxd6 {[%emt 0:00:05]} 13. f4 {[%emt 0:00:47]} Bg4 {[%emt 0:07:50]} 14. Rae1 {[%emt 0:06:04]} Nd7 {[%emt 0:01:56]} 15. Bf5 {[%emt 0:03:19]} Bh5 {[%emt 0:00:39]} 16. g4 {[%emt 0:06:41]} hxg3 {[%emt 0:01:11]} 17. Nxg3 {[%emt 0:01:10]} Rxe1 {[%emt 0:01:07]} 18. Rxe1 {[%emt 0:00:06]} Bf3 {[%emt 0:00:27]} 19. Qf2 {[%emt 0:01:03]} Bd5 {[%emt 0:00:43]} 20. Nh5 {[%emt 0:02:12]} Nf8 {[%emt 0:10:50]} 21. Qg3 {[%emt 0:11:47]} Ng6 {[%emt 0:02:05]} 22. Bxg6 {[%emt 0:00:28]} fxg6 {[%emt 0:00:05]} 23. Qxg6 {[%emt 0:00:10]} Qf8 {[%emt 0:00:07]} 24. Kf2 {[%emt 0:00:26]} Qf7 {[%emt 0:03:06]} 25. Rg1 {[%emt 0:01:04]} Qxg6 {[%emt 0:04:49]} 26. Rxg6 {[%emt 0:00:05]} Kf8 {[%emt 0:01:59]} 27. Rxg7 {[%emt 0:00:23]} Bf7 {[%emt 0:00:52]} 28. Rh7 {[%emt 0:00:10]} Ke7 {[%emt 0:00:29]} 29. Ng3 {[%emt 0:02:22]} Ke6 {[%emt 0:03:09]} 30. f5+ {[%emt 0:01:15]} Ke7 {[%emt 0:00:21]} 31. Ne4 {[%emt 0:01:29]} Rf8 {[%emt 0:00:33]} 32. b3 {[%emt 0:00:41]} b6 {[%emt 0:01:51]} 33. h4 {[%emt 0:00:30]} Rd8 {[%emt 0:04:36]} 34. Ke3 {[%emt 0:01:57]} Rd5 35. Kf4 {[%emt 0:01:30]} Ra5 {[%emt 0:01:52]} 36. a4 {[%emt 0:01:41]} Kf8 {[%emt 0:05:17]} 37. b4 {[%emt 0:03:42]} Rxa4 {[%emt 0:00:20]} 38. Nxf6 {[%emt 0:00:12]} a5 {[%emt 0:02:35]} 39. Nd7+ {[%emt 0:02:36]} Kg8 {[%emt 0:00:25]} 40. Nxb6 {[%emt 0:00:00]} Ra1 {[%emt 0:00:00]} 41. Rh6 {[%emt 0:01:20]} a4 {[%emt 0:01:47]} 42. Nxa4 {[%emt 0:00:50]} Rxa4 {[%emt 0:00:09]} 43. Rxc6 {[%emt 0:00:07]} Ra1 {[%emt 0:03:19]} 44. b5 {[%emt 0:01:11]} Rb1 {[%emt 0:04:33]} 45. b6 {[%emt 0:00:40]} Rb5 {[%emt 0:21:03]} 46. c4 {[%emt 0:03:46]} Rb4 {[%emt 0:01:03]} 47. Ke4 {[%emt 0:00:40]} Rb1 {[%emt 0:06:35]} 48. d5 {[%emt 0:01:32]} Kg7 {[%emt 0:01:41]} 49. d6 {[%emt 0:00:39]} Kf6 {[%emt 0:02:19]} 50. c5 {[%emt 0:01:09]} Rb4+ {[%emt 0:00:45]} 51. Kd3 {[%emt 0:00:28]} Ke5 {[%emt 0:04:07]} 52. Rc7 {[%emt 0:00:54]} Kf6 {[%emt 0:07:32]} 53. d7 {[%emt 0:00:50]} Ke7 {[%emt 0:00:28]} 54. d8=Q+ {[%emt 0:00:13]} Kxd8 {[%emt 0:00:04]} 55. Rxf7 {[%emt 0:00:06]} Rxh4 {[%emt 0:01:02]} 56. c6 {[%emt 0:00:20]} Rb4 {[%emt 0:00:34]} 57. b7 {[%emt 0:00:15]} 1-0

[Event "Hungarian Youth-ch U14 2022"]
[Site "Eger"]
[Date "2022.07.31"]
[Round "9.10"]
[White "Toth, Timea"]
[Black "Kovacs, Reka"]
[Result "1/2-1/2"]
[ECO "B22"]
[WhiteElo "1964"]
[BlackElo "1716"]
[Annotator "NA RC"]
[PlyCount "84"]
[EventDate "2022.07.21"]
[EventType "tourn"]
[EventCountry "HUN"]
[SourceTitle "playchess.com"]
[Source "ChessBase"]
[SourceQuality "1"]
[TimeControl "40/5400+30:1800+30"]

1. e4 {[%emt 0:00:33]} c5 {[%emt 0:00:34]} 2. c3 {[%emt 0:00:03]} d5 {[%emt 0:00:09]} 3. exd5 {[%emt 0:00:06]} Qxd5 {[%emt 0:00:06]} 4. d4 {[%emt 0:00:05]} cxd4 {[%emt 0:00:08]} 5. cxd4 {[%emt 0:00:19]} Nc6 {[%emt 0:00:08]} 6. Nf3 {[%emt 0:00:13]} e5 {[%emt 0:00:14]} 7. Nc3 {[%emt 0:15:09]} Bb4 {[%emt 0:00:15]} 8. a3 {[%emt 0:01:06]} Bxc3+ {[%emt 0:05:00]} ({Don't play} 8... Qe4+ 9. Qe2 Bxc3+ 10. bxc3 Qxe2+ 11. Bxe2 $14) 9. bxc3 {[%emt 0:00:07]} exd4 {[%emt 0:07:13]} 10. cxd4 {[%emt 0:00:57]} Bg4 {[%emt 0:05:30]} 11. Be2 {[%emt 0:22:02]} Nge7 {[%emt 0:02:10]} 12. O-O {[%emt 0:05:24]} O-O {[%emt 0:01:07]} 13. Be3 {[%emt 0:29:29]} Rfd8 {[%emt 0:16:31]} 14. Qd2 $15 {[%emt 0:09:32]} Qd7 {[%emt 0:14:15]} 15. Rfd1 {[%emt 0:07:27]} Nd5 {[%emt 0:05:08]} 16. Rac1 {[%emt 0:04:54]} Qd6 {[%emt 0:07:07]} 17. Qd3 {[%emt 0:00:34]} Bh5 {[%emt 0:09:04]} 18. Ra1 {[%emt 0:00:21]} Bg6 {[%emt 0:00:19]} 19. Qd2 {[%emt 0:00:15]} Nf6 {[%emt 0:08:47]} 20. Bd3 {[%emt 0:00:31]} Be4 {[%emt 0:02:22]} 21. Be2 {[%emt 0:00:15]} Nd5 {[%emt 0:00:54]} 22. Ng5 {[%emt 0:00:55]} Bg6 {[%emt 0:01:51]} 23. Nf3 {[%emt 0:00:15]} Rac8 {[%emt 0:00:42]} 24. Bd3 {[%emt 0:00:37]} Bxd3 {[%emt 0:04:08]} 25. Qxd3 {[%emt 0:00:02]} Qg6 {[%emt 0:01:19]} 26. Qxg6 {[%emt 0:00:21]} hxg6 {[%emt 0:00:07]} 27. Rd3 {[%emt 0:00:13]} Nce7 {[%emt 0:02:00]} 28. h3 {[%emt 0:00:54]} Nf5 {[%emt 0:00:32]} 29. Re1 {[%emt 0:00:12]} Rc3 {[%emt 0:01:40]} 30. Rxc3 {[%emt 0:01:34]} Nxc3 {[%emt 0:00:02]} 31. g4 {[%emt 0:00:36]} Nd6 {[%emt 0:03:01]} 32. Kf1 {[%emt 0:00:38]} Nd5 {[%emt 0:00:34]} 33. Rc1 {[%emt 0:00:35]} Nxe3+ {[%emt 0:01:09]} 34. fxe3 {[%emt 0:00:03]} Kf8 {[%emt 0:02:06]} 35. Ne5 {[%emt 0:00:28]} Ke7 {[%emt 0:01:02]} 36. Rc7+ {[%emt 0:00:34]} Ke6 {[%emt 0:00:22]} 37. a4 {[%emt 0:00:06]} Rc8 {[%emt 0:00:21]} 38. Rxc8 {[%emt 0:00:30]} Nxc8 {[%emt 0:00:01]} 39. Ke2 {[%emt 0:00:11]} Ne7 {[%emt 0:00:28]} 40. Kd3 {[%emt 0:00:00]} f6 {[%emt 0:00:00]} 41. Nc4 {[%emt 0:01:11]} Nd5 {[%emt 0:03:46]} 42. Nd2 {[%emt 0:13:08]} g5 {[%emt 0:02:08]} 1/2-1/2